bitfinex-derivatives/quotes_SOLF0:USTF0_20250823
["timestamp","ask_amount","ask_price","bid_price","bid_amount"]
[1755963334480,2.61,203.13,203.04,2.73]
[1755963334675,7.5353,203.1,203.06,2.73]
[1755963334869,7.5353,203.1,203.07,9.03317394]
[1755963335074,7.5353,203.1,203.06,2.73]
[1755963335270,7.5353,203.1,203.07,9.03433473]
[1755963335481,7.5353,203.1,203.08,4.41944307]
[1755963335684,7.5353,203.1,203.06,2.73]
[1755963335975,4.9253,203.1,203.07,9.03452152]
[1755963336175,121.46,203.14,203.08,4.4201307]
[1755963336176,4.9249,203.12,203.08,4.4201307]
[1755963336381,2.61,203.11,203.09,4.41986128]
[1755963336583,2.61,203.11,203.07,2.73]
[1755963336780,2.61,203.1,203.08,9.03510945]
[1755963337077,2.61,203.1,203.04,4.9266]
[1755963337283,2.61,203.09,203.05,17.64517415]
[1755963337476,2.61,203.09,203.06,10.6398297]
[1755963337676,2.61,203.09,203.07,9.03587075]
[1755963337877,2.61,203.09,203.08,4.42018859]
[1755963338582,121.46,203.14,203.08,4.42018859]
[1755963338583,2.61,203.11,203.08,4.42018859]
[1755963338784,2.61,203.11,203.09,4.4199593]
[1755963338984,2.61,203.11,203.05,7.6564]
[1755963339184,121.46,203.14,203.07,2.73]
[1755963339185,126.3844,203.14,203.07,2.73]
[1755963339386,126.3844,203.14,203.08,10.63920347]
[1755963339689,2.61,203.13,203.09,11.76534784]
[1755963339881,2.61,203.13,203.09,2.73]
[1755963340483,7.5347,203.13,203.09,2.73]
[1755963340989,2.61,203.12,203.09,2.73]
[1755963342488,7.5349,203.12,203.09,2.73]
[1755963342690,7.94963279,203.17,203.02,7.94963279]
[1755963342691,2.61,203.15,203.02,2.73]
[1755963342991,2.61,203.15,203.04,2.73]
[1755963343188,4.9256,203.09,203.05,10.63523534]
[1755963343386,4.9256,203.09,203.06,2.73]
[1755963343589,4.9256,203.09,203.07,9.03222759]
[1755963343888,4.9256,203.09,203.06,2.73]
[1755963344088,4.9256,203.09,203.07,11.76225963]
[1755963344288,4.9256,203.09,203.0,4.9276]
[1755963344593,4.9251,203.11,203.02,2.73]
[1755963344780,2.61,203.15,203.04,2.73]
[1755963344985,2.61,203.15,203.05,10.63555239]
[1755963345189,2.61,203.15,203.06,9.03222882]
[1755963345487,2.61,203.15,203.07,4.41841438]
[1755963345791,2.61,203.15,203.04,2.73]
[1755963345992,2.61,203.15,203.05,10.63634286]
[1755963346294,2.61,203.15,203.06,9.03288073]
[1755963346483,4.9259,203.08,203.07,4.4187304]
[1755963347792,4.9259,203.08,203.07,7.1487304]
[1755963348089,4.9259,203.08,203.07,4.4187304]
[1755963349189,4.9267,203.04,203.03,2.73]
[1755963349389,4.9267,203.04,203.03,13.42178739]
[1755963350996,4.9267,203.04,203.03,9.08821116]
[1755963351193,4.9267,203.04,203.03,4.41901215]
[1755963351392,7.5367,203.04,203.03,4.41901215]
[1755963352495,4.9267,203.04,203.03,4.41901215]
[1755963352898,4.9279,202.99,202.98,174.25186312]
[1755963353099,4.9279,202.99,202.98,7.00522858]
[1755963353292,4.9279,202.99,202.98,13.42507669]
[1755963353786,4.9279,202.99,202.98,13.42482018]
[1755963354586,4.9279,202.99,202.98,9.09052689]
[1755963355101,4.9287,202.96,202.95,2.73]
[1755963355294,4.9287,202.96,202.95,13.40796855]
[1755963357003,2.61,203.02,202.95,13.40796855]
[1755963357201,2.61,203.02,202.96,10.67796855]
[1755963357402,2.61,203.02,202.98,2.73]
[1755963358104,4.9279,202.99,202.98,2.73]
[1755963358397,4.9279,202.99,202.98,11.80008652]
[1755963361002,4.9279,202.99,202.98,9.07008652]
[1755963361906,4.9285,202.97,202.94,2.73]
[1755963362107,4.9285,202.97,202.95,14.94396612]
[1755963362303,4.9285,202.97,202.96,13.40166143]
[1755963363805,4.928,202.99,202.96,13.40166143]
[1755963364004,4.928,202.99,202.98,2.6]
[1755963364312,4.928,202.99,202.98,7.0014751]
[1755963364609,4.928,202.99,202.98,11.66759611]
[1755963365308,4.928,202.99,202.98,11.66747188]
[1755963365512,7.94963279,203.08,202.98,11.66747188]
[1755963365513,2.56,203.09,202.99,2.6]
[1755963365705,2.56,203.09,203.01,2.6]
[1755963365911,2.56,203.09,203.02,9.06747188]
[1755963366210,2.56,203.07,202.97,2.6]
[1755963366406,2.56,203.07,202.98,14.9381617]
[1755963366609,2.56,203.07,202.99,9.06515061]
[1755963366807,2.56,203.07,202.97,2.6]
[1755963366808,4.9274,203.01,203.0,9.06515061]
[1755963367306,2.56,203.0,202.97,2.6]
[1755963367608,4.9279,202.99,202.98,4.40066899]
[1755963368009,4.929,202.95,202.93,2.6]
[1755963368310,4.929,202.95,202.94,11.66704623]
[1755963368510,4.929,202.95,202.89,121.32]
[1755963368511,2.56,202.95,202.89,2.6]
[1755963368707,2.56,202.94,202.9,10.66951237]
[1755963368907,2.56,202.94,202.89,2.6]
[1755963368908,2.56,202.93,202.91,9.06662931]
[1755963369110,2.56,202.93,202.89,2.6]
[1755963369314,4.9296,202.92,202.9,10.66648861]
[1755963369608,4.9296,202.92,202.91,9.0643515]
[1755963370309,4.9296,202.92,202.91,4.40052042]
[1755963371310,4.93,202.91,202.89,2.6]
[1755963371506,4.93,202.91,202.83,126.2517]
[1755963371706,4.93,202.91,202.84,14.9194632]
[1755963371913,4.93,202.91,202.88,2.6]
[1755963372113,4.93,202.91,202.89,9.05394373]
[1755963372411,4.93,202.91,202.9,4.3943451]
[1755963372912,4.93,202.91,202.85,2.6]
[1755963373105,4.93,202.91,202.87,2.6]
[1755963373301,4.93,202.91,202.89,2.6]
[1755963373812,4.93,202.91,202.84,2.6]
[1755963374009,4.93,202.91,202.85,14.90917909]
[1755963374211,4.93,202.91,202.83,121.32]
[1755963374212,4.93,202.91,202.87,2.6]
[1755963374407,4.93,202.91,202.88,9.0476829]
[1755963374711,4.93,202.91,202.9,2.6]
[1755963375712,4.93,202.91,202.85,4.9311]
[1755963376015,4.93,202.91,202.88,2.6]
[1755963376214,4.93,202.91,202.89,9.04252997]
[1755963376407,4.9303,202.9,202.87,2.6]
[1755963376607,4.9303,202.9,202.88,9.04124221]
[1755963376816,4.9306,202.89,202.87,2.6]
[1755963377015,4.9306,202.89,202.88,4.38823395]
[1755963377211,4.9306,202.89,202.87,2.6]
[1755963377610,4.9306,202.89,202.88,4.38732759]
[1755963378011,4.9306,202.89,202.88,6.98732759]
[1755963378318,4.9299,202.91,202.88,6.98732759]
[1755963378515,4.9299,202.91,202.88,2.6]
[1755963380217,4.9299,202.91,202.85,4.9311]
[1755963380415,4.9299,202.91,202.87,2.6]
[1755963380619,4.9299,202.91,202.89,2.6]
[1755963381827,2.56,203.03,202.91,2.6]
[1755963382129,2.56,203.03,202.89,121.32]
[1755963382130,2.56,203.03,202.93,2.6]
[1755963382520,2.56,203.01,202.93,2.6]
[1755963383232,2.56,202.97,202.93,2.6]
[1755963383430,2.56,202.97,202.89,2.6]
[1755963383725,4.929,202.95,202.9,8.99294057]
[1755963384030,2.56,202.97,202.91,6.98600009]
[1755963384229,2.56,202.97,202.91,2.6]
[1755963384525,4.9288,202.96,202.9,4.93]
[1755963384732,24.6362,203.02,202.92,2.6]
[1755963384921,2.56,203.01,202.92,2.6]
[1755963386225,4.9285,202.97,202.92,2.6]
[1755963386533,4.9285,202.97,202.93,2.6]
[1755963386832,2.56,202.97,202.89,2.6]
[1755963387028,2.56,202.97,202.9,10.59051889]
[1755963387232,2.56,202.97,202.91,8.99309718]
[1755963387429,2.56,202.97,202.92,6.9823655]
[1755963387625,2.56,202.94,202.88,2.6]
[1755963387830,2.56,202.94,202.89,10.59431221]
[1755963388033,2.56,202.94,202.91,2.6]
[1755963388227,2.56,202.97,202.91,2.6]
[1755963388533,4.9292,202.94,202.91,2.6]
[1755963390037,4.9295,202.93,202.87,2.6]
[1755963390226,4.9295,202.93,202.89,2.6]
[1755963390430,24.6424,202.97,202.9,9.00117889]
[1755963390633,2.56,202.92,202.91,9.00117889]
[1755963390827,2.56,202.92,202.89,2.6]
[1755963391027,2.56,202.92,202.9,9.00362772]
[1755963391235,2.56,202.92,202.91,9.00362772]
[1755963391438,2.56,202.92,202.91,4.38749107]
[1755963391634,7.4898,202.92,202.86,7.531]
[1755963391836,7.4898,202.92,202.88,2.6]
[1755963392129,4.93,202.91,202.89,9.00655617]
[1755963392440,2.56,202.91,202.88,2.6]
[1755963392734,2.56,202.91,202.89,9.00971743]
[1755963392940,2.56,202.91,202.88,2.6]
[1755963393240,4.9302,202.9,202.89,9.00971594]
[1755963394138,7.7002,202.9,202.89,9.00971594]
[1755963394437,7.7002,202.9,202.89,4.39045072]
[1755963396032,7.7002,202.9,202.84,2.83]
[1755963396033,7.7007,202.88,202.84,2.83]
[1755963396331,7.7007,202.88,202.81,457.3922]
[1755963396332,7.7007,202.88,202.85,13.4516393]
[1755963396532,2.77,202.88,202.86,10.6216393]
[1755963396732,24.6461,202.94,202.87,9.01937001]
[1755963396932,84.0,202.93,202.88,9.01948882]
[1755963397133,7.7002,202.9,202.86,2.83]
[1755963397443,7.7002,202.9,202.87,10.6232831]
[1755963397641,7.7002,202.9,202.88,9.02077011]
[1755963397938,7.7002,202.9,202.86,2.83]
[1755963398138,7.7002,202.9,202.87,10.6232831]
[1755963398344,7.7002,202.9,202.88,9.02077011]
[1755963398541,7.7002,202.9,202.89,9.02077011]
[1755963399343,7.7002,202.9,202.89,4.39582758]
[1755963399541,4.9305,202.89,202.82,7.762]
[1755963399742,2.77,202.87,202.83,17.67021154]
[1755963399939,84.0,202.88,202.84,14.84021154]
[1755963400138,7.7013,202.86,202.85,9.02083934]
[1755963400338,84.0,202.88,202.77,125.44026644]
[1755963400339,91.94963279,202.88,202.77,121.3]
[1755963400641,2.77,202.85,202.78,10.44310231]
[1755963400941,2.77,202.85,202.79,10.44310231]
[1755963401136,4.9322,202.82,202.8,10.44310231]
[1755963401339,7.7022,202.82,202.81,6.22707191]
[1755963401743,7.7022,202.82,202.81,4.62456788]
[1755963402243,2.77,202.84,202.72,6.97026644]
[1755963402545,2.77,202.82,202.73,10.43640004]
[1755963402746,2.77,202.82,202.74,10.43640004]
[1755963403039,2.77,202.82,202.75,6.22359245]
[1755963403244,2.77,202.82,202.76,4.62186236]
[1755963403438,2.77,202.81,202.77,4.61899937]
[1755963403638,2.77,202.81,202.73,4.9341]
[1755963403936,7.7025,202.81,202.74,15.36392384]
[1755963404147,7.7025,202.81,202.75,6.21978015]
[1755963404439,2.77,202.79,202.76,4.61899937]
[1755963404644,7.7027,202.8,202.74,2.83]
[1755963404937,2.77,202.78,202.75,6.21651972]
[1755963405141,2.77,202.78,202.74,2.83]
[1755963405142,2.77,202.78,202.76,4.61657092]
[1755963405335,2.77,202.78,202.74,2.83]
[1755963405536,2.77,202.78,202.75,4.61412102]
[1755963405745,2.77,202.78,202.76,4.61412102]
[1755963405942,7.7027,202.8,202.74,2.83]
[1755963406239,2.77,202.78,202.74,2.83]
[1755963406446,4.9327,202.8,202.73,4.9341]
[1755963406739,84.0,202.83,202.75,2.83]
[1755963406945,84.0,202.83,202.77,2.83]
[1755963407133,84.0,202.83,202.79,2.83]
[1755963407333,86.77,202.83,202.79,2.83]
[1755963407539,84.0,202.83,202.73,24.6711]
[1755963407739,84.0,202.83,202.75,2.83]
[1755963407943,84.0,202.83,202.76,6.18547137]
[1755963408139,84.0,202.83,202.77,7.41766419]
[1755963408344,84.0,202.83,202.77,2.83]
[1755963409443,84.0,202.82,202.78,7.7629]
[1755963409643,84.0,202.82,202.79,2.83]
[1755963410342,84.0,202.82,202.74,121.32]
[1755963410548,84.0,202.82,202.76,2.83]
[1755963410744,84.0,202.82,202.81,2.83]
[1755963411242,84.0,202.82,202.81,7.41814769]
[1755963412646,84.0,202.82,202.81,2.83]
[1755963412947,84.0,202.82,202.81,7.41977722]
[1755963413543,2.77,202.89,202.81,9.0182459]
[1755963413743,2.77,202.89,202.82,4.58997542]
[1755963413940,2.77,202.89,202.81,2.83]
[1755963414145,2.77,202.89,202.85,4.9312]
[1755963414346,2.77,202.91,202.81,2.83]
[1755963414546,2.77,202.91,202.82,6.18850062]
[1755963414742,2.77,202.91,202.81,2.83]
[1755963415340,4.9306,202.88,202.79,4.9327]
[1755963415543,2.77,202.87,202.8,4.59042917]
[1755963415746,2.77,202.87,202.81,7.42042917]
[1755963415947,2.77,202.87,202.81,2.83]
[1755963417248,2.77,202.87,202.83,2.83]
[1755963419352,4.9305,202.89,202.83,2.83]
[1755963419548,7.7005,202.89,202.83,2.83]
[1755963420855,2.77,202.87,202.83,2.83]
[1755963422352,3.95941,202.92,202.84,2.83]
[1755963422754,24.6321,202.91,202.84,2.83]
[1755963423148,3.95941,202.92,202.88,7.7606]
[1755963423555,3.95941,202.92,202.88,2.83]
[1755963426453,3.95941,202.92,202.88,7.7604]
[1755963426652,1.18941,202.92,202.9,2.81]
[1755963427052,1.18941,202.92,202.91,2.81]
[1755963429054,1.18941,202.92,202.91,7.40114334]
[1755963429660,1.18941,202.92,202.91,7.40135816]
[1755963431857,24.6321,203.0,202.92,2.81]
[1755963432161,2.71,203.01,202.94,2.81]
[1755963432862,2.71,203.01,202.94,7.739]
[1755963433563,4.9272,203.02,202.96,2.81]
[1755963433754,4.9268,203.04,202.96,2.81]
[1755963434455,2.71,203.05,202.96,2.81]
[1755963434955,2.71,202.98,202.91,2.81]
[1755963435157,2.71,202.98,202.92,6.18539788]
[1755963435349,2.71,202.98,202.93,4.58786985]
[1755963435553,2.71,202.97,202.91,2.81]
[1755963435759,7.94963279,203.03,202.92,4.58760008]
[1755963435760,7.6388,202.96,202.92,4.58760008]
[1755963435960,7.6388,202.96,202.91,2.81]
[1755963436563,2.71,202.95,202.91,2.81]
[1755963436964,2.71,202.95,202.92,4.66433886]
[1755963437153,2.71,202.95,202.91,2.81]
[1755963438465,4.9283,202.98,202.91,2.81]
[1755963438662,4.9283,202.98,202.92,4.66295984]
[1755963438969,24.6321,202.99,202.92,4.9295]
[1755963439162,24.6321,202.99,202.93,2.81]
[1755963439664,24.6321,202.99,202.94,4.66173277]
[1755963439868,24.6321,202.99,202.97,2.81]
[1755963440168,2.71,203.01,202.97,2.81]
[1755963440360,2.71,203.01,202.95,4.9287]
[1755963440964,2.71,203.02,202.94,2.81]
[1755963441363,4.9281,202.99,202.94,2.81]
[1755963441668,2.71,203.01,202.91,4.9298]
[1755963441965,2.71,203.01,202.92,6.25415203]
[1755963442267,2.71,203.01,202.93,4.65875492]
[1755963442457,2.71,203.01,202.91,4.9298]
[1755963442660,4.9283,202.98,202.92,4.65766202]
[1755963442869,2.71,202.97,202.91,4.9298]
[1755963443069,2.71,202.97,202.92,4.65781692]
[1755963443367,2.71,202.97,202.91,4.9298]
[1755963443368,4.9286,202.97,202.91,2.81]
[1755963443560,4.9286,202.97,202.9,280.39691784]
[1755963443561,2.71,202.96,202.92,7.46705263]
[1755963443766,2.71,202.96,202.92,2.81]
[1755963444367,2.71,202.96,202.93,2.81]
[1755963444865,2.71,202.96,202.9,288.13691784]
[1755963445072,2.71,202.96,202.91,4.65633736]
[1755963445264,4.9286,202.97,202.92,2.81]
[1755963445459,7.6386,202.97,202.93,2.81]
[1755963446270,27.3421,203.01,202.91,2.81]
[1755963446569,27.3421,203.01,202.93,2.81]
[1755963446570,24.6321,203.0,202.93,2.81]
[1755963446769,24.6321,203.0,202.95,2.81]
[1755963446964,2.71,202.99,202.92,121.18]
[1755963447273,2.71,202.99,202.93,4.65518164]
[1755963447573,24.6321,203.0,202.93,7.7391]
[1755963447772,24.6321,203.0,202.94,4.65493269]
[1755963447964,29.56,203.0,202.93,7.7391]
[1755963448361,29.56,203.0,202.94,4.65571128]
[1755963448567,29.56,203.0,202.93,7.7391]
[1755963448871,4.9281,202.99,202.94,4.65567678]
[1755963449072,2.71,202.98,202.92,123.99]
[1755963449267,24.6321,203.0,202.93,7.46574001]
[1755963449268,2.71,202.97,202.93,7.46574001]
[1755963449468,2.71,202.97,202.94,2.81]
[1755963449667,2.71,202.98,202.9,159.19691784]
[1755963449868,27.3421,202.98,202.91,4.65695179]
[1755963450063,27.3421,202.98,202.9,159.19691784]
[1755963450268,27.3421,202.98,202.92,2.81]
[1755963450269,24.6321,202.98,202.92,2.81]
[1755963450473,24.6321,202.98,202.94,2.81]
[1755963450663,24.6321,202.98,202.95,2.81]
[1755963450868,7.94963279,203.07,202.9,159.19691784]
[1755963450869,24.6321,203.01,202.9,159.19691784]
[1755963451066,2.71,203.04,202.97,2.81]
[1755963451261,7.6368,203.04,202.97,2.81]
[1755963452572,4.9271,203.03,202.97,7.7383]
[1755963453674,4.9271,203.03,202.98,4.66065519]
[1755963453866,4.9271,203.03,202.97,7.7383]
[1755963453867,2.71,203.02,202.97,7.7383]
[1755963454068,2.71,203.02,202.98,4.66065519]
[1755963454270,2.71,203.01,202.97,7.7383]
[1755963454573,2.71,203.01,202.97,2.81]
[1755963455570,7.6376,203.01,202.98,4.6631011]
[1755963455770,7.6376,203.01,202.97,2.81]
[1755963455970,7.6376,203.01,202.98,4.66303857]
[1755963456166,7.6376,203.01,202.97,2.81]
[1755963456371,7.6376,203.01,202.98,4.66349755]
[1755963456671,24.6321,203.06,202.99,7.33322779]
[1755963456875,24.6321,203.06,203.0,4.66319744]
[1755963457066,24.6321,203.06,202.99,2.67]
[1755963457270,24.6321,203.05,203.01,2.67]
[1755963457571,2.71,203.07,203.03,2.67]
[1755963457780,2.71,203.11,203.03,2.67]
[1755963458074,2.71,203.11,203.04,6.25820858]
[1755963458273,2.71,203.11,203.05,4.66199847]
[1755963458475,2.71,203.11,203.06,7.33199847]
[1755963458673,2.71,203.13,203.06,2.67]
[1755963459275,2.71,203.1,203.06,2.67]
[1755963459476,2.71,203.12,203.04,2.67]
[1755963459771,2.71,203.12,203.05,4.65805575]
[1755963460078,2.71,203.12,203.04,2.67]
[1755963460079,2.71,203.12,203.06,4.65805575]
[1755963460273,49.2539,203.14,203.07,4.65805575]
[1755963460274,2.71,203.09,203.07,4.65805575]
[1755963460469,2.71,203.09,203.02,121.52]
[1755963460470,2.71,203.09,203.05,2.67]
[1755963460677,2.71,203.09,203.06,4.65732664]
[1755963460975,2.71,203.09,203.05,2.67]
[1755963461170,2.71,203.09,203.06,4.65720176]
[1755963461475,2.71,203.09,203.01,2.67]
[1755963461676,2.71,203.09,203.02,10.45089036]
[1755963461869,7.636,203.08,203.03,10.45103103]
[1755963462072,7.636,203.08,203.04,7.32739336]
[1755963462374,7.636,203.08,203.05,4.65739336]
[1755963462575,7.636,203.08,203.06,4.65739336]
[1755963462771,4.9252,203.11,203.02,2.67]
[1755963462973,7.6352,203.11,203.03,10.45122884]
[1755963463173,7.6352,203.11,203.04,4.65756143]
[1755963463375,7.6352,203.11,203.05,4.65756143]
[1755963463678,7.6352,203.11,203.06,7.32756143]
[1755963463868,2.71,203.1,203.06,2.67]
[1755963464568,2.71,203.09,203.02,2.67]
[1755963464768,2.71,203.09,203.03,10.45279924]
[1755963464971,27.3337,203.13,203.04,4.65858906]
[1755963465176,2.71,203.07,203.05,4.65858906]
[1755963465376,2.71,203.1,203.02,2.67]
[1755963465678,2.71,203.1,203.03,10.45150466]
[1755963465881,2.71,203.1,203.04,4.65801193]
[1755963466179,49.2575,203.11,203.05,4.65801193]
[1755963466378,2.71,203.07,203.02,2.67]
[1755963466573,49.2575,203.11,203.03,4.657468]
[1755963466780,2.71,203.05,202.99,121.36]
[1755963467077,24.6321,203.05,203.02,2.67]
[1755963468776,24.6321,203.05,203.03,7.22754154]
[1755963468974,24.6321,203.05,203.04,7.22754154]
[1755963469172,7.6358,203.08,203.04,7.22754154]
[1755963469370,24.6321,203.13,203.05,4.55782027]
[1755963469371,4.9252,203.11,203.05,4.55782027]
[1755963469579,24.6321,203.1,203.03,2.67]
[1755963469775,24.6321,203.1,203.04,10.35737528]
[1755963469980,2.71,203.09,203.05,4.5577564]
[1755963470180,2.71,203.09,203.03,2.67]
[1755963470374,2.71,203.08,203.04,8.82555682]
[1755963470585,2.71,203.08,203.05,4.55847917]
[1755963470781,2.71,203.08,203.04,2.67]
[1755963470977,2.71,203.08,203.05,4.55847844]
[1755963471177,2.71,203.08,203.04,2.67]
[1755963471472,2.71,203.08,203.05,4.55945636]
[1755963471673,2.71,203.08,203.04,2.67]
[1755963471871,2.71,203.08,203.05,4.55945636]
[1755963472078,2.71,203.08,203.04,2.67]
[1755963472371,2.71,203.08,203.05,4.55945636]
[1755963472677,2.71,203.08,203.04,2.67]
[1755963472876,24.6321,203.1,203.0,121.32]
[1755963473185,2.71,203.08,203.01,10.36077064]
[1755963473481,2.71,203.08,203.02,10.36077064]
[1755963473777,24.6321,203.09,203.04,2.67]
[1755963473986,24.6321,203.09,203.06,2.67]
[1755963475474,24.6321,203.09,203.0,121.32]
[1755963475678,24.6321,203.09,203.02,2.67]
[1755963475874,24.6321,203.09,203.03,10.36238517]
[1755963476080,24.6321,203.09,203.05,2.67]
[1755963476280,24.6321,203.09,203.06,7.2304955]
[1755963476474,24.6321,203.09,203.06,2.67]
[1755963477283,24.6321,203.09,203.07,2.67]
[1755963477478,24.6321,203.09,203.08,4.56003608]
[1755963477682,24.6321,203.09,203.08,7.23003608]
[1755963477985,24.6321,203.09,203.08,8.82760951]
[1755963478281,27.3421,203.16,203.08,13.03028676]
[1755963478485,27.3421,203.16,203.09,6.15760951]
[1755963478486,24.6321,203.15,203.09,6.15760951]
[1755963478678,24.6321,203.15,203.08,2.67]
[1755963478679,2.71,203.14,203.1,7.23003608]
[1755963478884,2.71,203.14,203.1,2.67]
[1755963479883,2.71,203.14,203.09,4.9254]
[1755963480087,24.6321,203.15,203.1,4.55705036]
[1755963480289,27.3421,203.15,203.11,2.67]
[1755963481588,27.3421,203.15,203.04,24.6333]
[1755963481589,24.6321,203.15,203.07,4.9259]
[1755963481779,24.6321,203.15,203.09,2.67]
[1755963481984,27.3421,203.15,203.11,2.67]
[1755963482286,32.2663,203.15,203.11,2.67]
[1755963482487,2.71,203.14,203.11,2.67]
[1755963483083,7.6345,203.14,203.08,4.9256]
[1755963483281,7.6345,203.14,203.09,4.55648605]
[1755963483487,7.6345,203.14,203.08,2.67]
[1755963483687,7.6345,203.14,203.04,7.94963279]
[1755963483688,7.6345,203.14,203.1,2.76]
[1755963484388,2.71,203.14,203.1,2.76]
[1755963484582,24.6321,203.15,203.08,4.9256]
[1755963484778,24.6321,203.15,203.1,2.76]
[1755963484979,24.6321,203.15,203.12,2.76]
[1755963485183,24.6321,203.15,203.13,2.76]
[1755963485682,24.6321,203.15,203.12,4.9246]
[1755963485882,24.6321,203.15,203.12,7.6846]
[1755963486079,24.6321,203.15,203.13,4.55209688]
[1755963486380,24.6321,203.15,203.12,2.76]
[1755963486579,24.6321,203.15,203.13,4.55075038]
[1755963486783,24.6321,203.15,203.11,4.9249]
[1755963486985,24.6321,203.15,203.12,8.90497212]
[1755963487190,24.6321,203.15,203.13,4.55075528]
[1755963487387,27.3521,203.22,203.12,2.76]
[1755963487580,24.6321,203.21,203.13,13.09663635]
[1755963487784,24.6321,203.21,203.14,8.90337599]
[1755963487979,24.6321,203.21,203.15,4.54957861]
[1755963488190,2.72,203.2,203.13,2.76]
[1755963488386,2.72,203.2,203.14,6.14134448]
[1755963488594,2.72,203.2,203.15,4.54810639]
[1755963488890,2.72,203.2,203.1,121.2]
[1755963489086,2.72,203.2,203.11,10.33460168]
[1755963489286,2.72,203.2,203.12,10.33460169]
[1755963489490,2.72,203.16,203.13,6.14177518]
[1755963489790,2.72,203.15,203.14,4.54841126]
[1755963490691,24.6321,203.2,203.14,4.54841126]
[1755963490994,32.275,203.2,203.12,2.76]
[1755963491192,32.275,203.2,203.13,6.14130776]
[1755963491394,32.275,203.2,203.14,4.54806169]
[1755963491588,27.3521,203.2,203.15,4.54795744]
[1755963491896,27.3521,203.2,203.16,7.30741709]
[1755963492088,27.3521,203.2,203.17,2.76]
[1755963492089,24.6321,203.2,203.17,2.76]
[1755963493298,24.6321,203.2,203.18,2.76]
[1755963494395,24.6321,203.2,203.14,2.76]
[1755963494591,2.72,203.18,203.15,8.73970879]
[1755963494798,24.6321,203.2,203.13,7.94963279]
[1755963494999,27.3521,203.2,203.15,2.76]
[1755963495196,2.72,203.19,203.15,2.76]
[1755963495401,2.72,203.18,203.16,4.55022135]
[1755963495698,2.72,203.19,203.1,121.2]
[1755963495997,2.72,203.19,203.11,10.33988074]
[1755963496197,4.9237,203.17,203.12,10.33988074]
[1755963496399,7.6437,203.17,203.13,6.14450065]
[1755963496598,2.72,203.17,203.14,4.55030724]
[1755963496802,2.72,203.17,203.15,4.62334799]
[1755963497000,2.72,203.17,203.14,2.76]
[1755963497301,24.6321,203.2,203.15,4.62222857]
[1755963497502,2.72,203.19,203.1,121.2]
[1755963497708,2.72,203.14,203.11,10.41334069]
[1755963497896,2.72,203.14,203.12,4.62336733]
[1755963498100,2.72,203.14,203.13,4.62336733]
[1755963498609,2.72,203.18,203.13,4.62336733]
[1755963498806,2.72,203.18,203.09,2.76]
[1755963499003,2.72,203.18,203.1,10.41722033]
[1755963499201,2.72,203.18,203.11,10.41722033]
[1755963499511,4.9239,203.16,203.12,6.22016706]
[1755963499702,2.72,203.18,203.13,7.38508698]
[1755963499898,24.6321,203.19,203.13,7.38508698]
[1755963499899,2.72,203.17,203.14,4.62508698]
[1755963500103,24.6321,203.19,203.14,2.76]